Cogmind - Beta 13 @@@ ROGUE MODE // 2024.04.02 @ 21:07:48 Player: AndK Result: Destroyed by Y-45 Defender with Beam Rifle Performance ------------- Evolutions (1) 500 Regions Visited (3) 600 Robots Destroyed (31) 155 Value Destroyed (884) 884 Prototype IDs (0) 0 Alien Tech Used (0) 0 Bonus (0) 0 TOTAL SCORE: 2139 Bonus ------- None Cogmind --------- Core Integrity 0/400 Matter 163/300 Energy 24/100 System Corruption 0% Temperature Cool (9) Movement Core (50) Location -9/Materials Parts ------- > --- POWER (2) -------- (None) > --- PROPULSION (2) --- (None) > --- UTILITY (3) ------ Power Shielding Shield Generator > --- WEAPON (2) ------- (None) > --- INVENTORY (5) ---- Light Assault Rifle Mini Grenade Launcher Mini Grenade Launcher Mini Grenade Launcher Peak State ------------ > --- POWER ------------ Ion Engine > --- PROPULSION ------- Improved Aluminum Leg Improved Aluminum Leg > --- UTILITY ---------- Small Storage Unit High-powered Tractor Beam > --- WEAPON ----------- Assault Rifle Mini Grenade Launcher > --- INVENTORY -------- Ion Engine Aluminum Leg Aluminum Leg Light Assault Rifle Mini Grenade Launcher Mini Grenade Launcher Mini Grenade Launcher [Rating: 12] Favorites ----------- Power Ion Engine Engine Ion Engine Propulsion Aluminum Leg Leg Aluminum Leg Wheel Wheel Utility Small Storage Unit Device ECM Suite Storage Small Storage Unit Protection Power Shielding Weapon Mini Grenade Launcher Energy Gun Medium Laser Energy Cannon Beam Cannon Ballistic Gun Heavy Assault Rifle Launcher Mini Grenade Launcher Build | -11 -10 -10 -9 ------- Run | Yrd Mat Min Mat Slots Evolved 2 | . . . 2 Power 1 | . . . 1 Propulsion . | . . . . Utility 1 | . . . 1 Weapon . | . . . . Parts Attached 38 | 6 13 7 12 Power 4 | 1 . 1 2 Engine 4 | 1 . 1 2 Core . | . . . . Reactor . | . . . . Propulsion 9 | 2 4 2 1 Treads . | . . . . Leg 7 | . 4 2 1 Wheel 2 | 2 . . . Hover . | . . . . Flight . | . . . . Utility 6 | 1 3 . 2 Device 3 | . 2 . 1 Storage 1 | 1 . . . Processor . | . . . . Hackware . | . . . . Protection 2 | . 1 . 1 Artifact . | . . . . Weapon 19 | 2 6 4 7 Energy Gun 4 | . 1 . 3 Energy Cannon 2 | . 1 . 1 Ballistic Gun 5 | 2 2 . 1 Ballistic Cannon . | . . . . Launcher 8 | . 2 4 2 Special Weapon . | . . . . Impact Weapon . | . . . . Slashing Weapon . | . . . . Piercing Weapon . | . . . . Special Melee Weapon . | . . . . Unidentified Prototypes . | . . . . Parts Lost 16 | . 1 5 10 Power 3 | . . 1 2 Propulsion 4 | . . 2 2 Utility 2 | . 1 . 1 Weapon 7 | . . 2 5 Highest Loss Streak 4 | . 1 4 4 To Critical Strikes . | . . . . Average Slot Usage (%) 82 | . 95 86 60 Engine 6 | . 14 4 1 Leg 21 | . 24 26 8 Wheel 1 | . 3 . . Device 11 | . 8 14 11 Storage 13 | . 14 14 10 Protection 2 | . 1 . 9 Energy Gun 5 | . 9 . 6 Energy Cannon 5 | . 9 4 1 Ballistic Gun 4 | . 7 . 5 Launcher 9 | . . 20 5 Naked Turns . | . . . . Heaviest Build 21 | 13 17 19 21 Greatest Support 26 | 26 26 20 20 Greatest Overweight (x) 4 | . 4 2 4 Average Overweight (x) . | . . . 1 Largest Inventory Capacity 8 | 8 8 8 8 Average Capacity 7 | 6 8 8 7 Most Carried 8 | 5 8 8 5 Average Carried 5 | 3 7 5 3 Final Capacity 8 | 8 8 8 5 Final Carried 8 | 4 8 4 4 Class Distribution -------------------- 100% | Mutant Dominant Class ---------------- Mutant | -10/Materials Mutant | -10/Mines Mutant | -9/Materials Resources | -11 -10 -10 -9 ----------- Run | Yrd Mat Min Mat Matter Collected 945 | 251 204 182 308 Remotely 28 | . 28 . . Salvage Created 846 | . 332 182 332 Parts 53 | . 20 12 21 Haulers Intercepted . | . . . . Recyclers Shooed 1 | . . 1 . Parts Field Recycled . | . . . . Retrieved Matter . | . . . . Parts Self-Destructed . | . . . . Prevented . | . . . . Kills | -11 -10 -10 -9 ------- Run | Yrd Mat Min Mat Combat Hostiles Destroyed 25 | . 10 5 10 Guns 9 | . 5 . 4 Cannons 2 | . 1 . 1 AOE 14 | . 4 5 5 Classes Destroyed 8 | . 3 2 3 Worker 2 | . . 2 . Builder 1 | . . . 1 Recycler 1 | . . 1 . Mechanic 1 | . . . 1 Watcher 1 | . 1 . . Swarmer 5 | . 3 . 2 Grunt 16 | . 7 4 5 Sentry 3 | . . . 3 Best Kill Streak 5 | . 5 5 4 Combat Bots Only 5 | . 5 4 3 Max Kills in Single Turn 2 | . 2 2 2 Gunslinging . | . . . . Exploded 2 | . 2 2 2 Melee . | . . . . Uniques/NPCs Destroyed 1 | . . 1 . YI-UF0 (-10/Mines) Combat | -11 -10 -10 -9 -------- Run | Yrd Mat Min Mat Hostile Shots Fired 202 | . 56 26 120 Missed 59 | . 15 9 35 Damage Taken 2210 | . 493 615 1102 Core 604 | . 107 94 403 Absorbed by Shields 35 | . . . 35 Redirected to Shielding 17 | . . . 17 Core Remaining (%) 59 | 100 . 19 . Volleys Fired 106 | . 37 13 56 Largest 2 | . 2 2 2 Hottest 110 | . 110 93 110 Shots Fired 184 | . 76 23 85 Gun 119 | . 60 . 59 Cannon 29 | . 6 9 14 Launcher 36 | . 10 14 12 Special . | . . . . Kinetic 78 | . 52 . 26 Thermal 70 | . 14 9 47 Explosive 36 | . 10 14 12 Electromagnetic . | . . . . Robot Hit Streak 13 | . 13 5 7 Robot Miss Streak 6 | . 4 4 6 Penetration Max . | . . . . Secondary Targets 2 | . 1 . 1 Max Gunslinging Chain 1 | . 1 . 1 Shots Hit Robots 82 | . 36 10 36 Core Hits 54 | . 17 13 24 Critical Kills . | . . . . Critical Parts Destroyed 1 | . . . 1 Critical Strikes 3 | . . . 3 Burn 2 | . . . 2 Destroy 1 | . . . 1 Melee Attacks . | . . . . Impact . | . . . . Slashing . | . . . . Piercing . | . . . . Sneak Attacks . | . . . . Combat Hostiles . | . . . . Follow-up Attacks . | . . . . Damage Inflicted 2000 | . 594 506 900 Guns 719 | . 323 . 396 Cannons 243 | . 34 34 175 Explosions 1038 | . 237 472 329 Melee . | . . . . Ramming . | . . . . Kinetic 485 | . 311 . 174 Thermal 477 | . 46 34 397 Explosive 1038 | . 237 472 329 Electromagnetic . | . . . . Impact . | . . . . Slashing . | . . . . Piercing . | . . . . Highest Corruption 3 | . 3 3 . Average Corruption 2 | . 2 3 . Corruption Purged . | . . . . Corruption Blocked . | . . . . Effects 19 | . 5 14 . Message Errors 2 | . . 2 . Matter Fused 5 | . 2 3 . Heat Flow Errors 4 | . . 4 . Energy Discharges 2 | . . 2 . Data Loss (minor) 1 | . 1 . . Data Loss (major) 1 | . . 1 . Misfires 2 | . 2 . . Alerts 2 | . . 2 . Overload Shots . | . . . . Overflow Damage 7 | . . 7 . Projectiles . | . . . . Explosions 7 | . . 7 . Melee . | . . . . Knockbacks . | . . . . Impact . | . . . . Kinetic . | . . . . Secondary . | . . . . Self-Inflicted Damage 122 | . 21 60 41 Shots 5 | . 1 2 2 Rammed . | . . . . Targets Rammed . | . . . . Kicked . | . . . . Crushed . | . . . . Highest Temperature 232 | . 108 232 102 Average Temperature 42 | . 31 63 28 Received Heat Transfer 618 | . 243 42 333 Siege Activations . | . . . . Robots Corrupted . | . . . . Combat Hostiles . | . . . . Parts Fried . | . . . . Impact Corruptions . | . . . . Robots Melted . | . . . . Combat Hostiles . | . . . . Parts Melted . | . . . . Heat Transferred 1295 | . 111 74 1110 Parts Sabotaged . | . . . . Parts Stolen . | . . . . Parts Stripped . | . . . . Power Chain Reactions . | . . . . Alert | -11 -10 -10 -9 ------- Run | Yrd Mat Min Mat Peak Influence 341 | . 302 259 341 Initial 60 | . . 60 19 Average 157 | . 170 122 206 Maximum Alert Level 1 | . 1 1 1 Low Security (%) 59 | 100 64 61 44 Level 1 40 | . 35 38 55 Level 2 . | . . . . Level 3 . | . . . . Level 4 . | . . . . Level 5 . | . . . . High Security . | . . . . Max Security . | . . . . Squads Dispatched 7 | . 3 . 4 Investigation 3 | . 2 . 1 Extermination . | . . . . Reinforcement 4 | . 1 . 3 Assault . | . . . . Garrison . | . . . . Intercept . | . . . . Searches Triggered . | . . . . Construction Impeded . | . . . . Haulers Reinforced . | . . . . Active Scanning Responses . | . . . . Cargo Convoy Interrupts . | . . . . Stealth | -11 -10 -10 -9 --------- Run | Yrd Mat Min Mat Distress Signals 4 | . 2 . 2 Communications Jammed . | . . . . Distress Signals . | . . . . Times Spotted 42 | . 17 5 20 Peak Tracking Total 5 | . 5 2 5 Tactical Retreats 1 | . 1 . . Traps | -11 -10 -10 -9 ------- Run | Yrd Mat Min Mat Traps Triggered 3 | . 3 . . Indirectly . | . . . . Trap Hack Attempts . | . . . . Triggered . | . . . . Disarmed . | . . . . Reprogrammed . | . . . . Reused . | . . . . Traps Extracted . | . . . . Installed . | . . . . Triggered . | . . . . Machines | -11 -10 -10 -9 ---------- Run | Yrd Mat Min Mat Machines Disabled 6 | . 3 2 1 Max in Single Turn 1 | . 1 1 1 Machines Repaired . | . . . . Machines Dismantled . | . . . . Machines Sabotaged . | . . . . Overloaded Fab Kills . | . . . . Hacking | -11 -10 -10 -9 --------- Run | Yrd Mat Min Mat Machines Accessed 6 | . 4 . 2 Terminals 6 | . 4 . 2 Fabricators . | . . . . Repair Stations . | . . . . Recycling Units . | . . . . Scanalyzers . | . . . . Garrison Access . | . . . . Total Hacks 14 | . 11 . 3 Successful 7 | . 5 . 2 Failed 7 | . 6 . 1 Catastrophic . | . . . . Database Lockouts . | . . . . Manual . | . . . . Terminals 14 | . 11 . 3 Fabricators . | . . . . Repair Stations . | . . . . Recycling Units . | . . . . Scanalyzers . | . . . . Garrison Access . | . . . . Terminal Hacks 7 | . 5 . 2 Branch Access Points 1 | . 1 . . Locate Traps 1 | . 1 . . Hauler Manifests 2 | . 2 . . Registered Components 1 | . . . 1 Zone Layout 2 | . 1 . 1 Fabricator Hacks . | . . . . Repair Station Hacks . | . . . . Recycling Unit Hacks . | . . . . Scanalyzer . | . . . . Garrison Access Hacks . | . . . . Unauthorized Hacks . | . . . . Terminals . | . . . . Fabricators . | . . . . Repair Stations . | . . . . Recycling Units . | . . . . Scanalyzers . | . . . . Garrison Access . | . . . . Data Cores Recovered . | . . . . Used . | . . . . Hacking Detections 3 | . 2 . 1 Full Trace Events 2 | . 1 . 1 Feedback Events . | . . . . Feedback Blocked . | . . . . Robot Schematics Acquired . | . . . . Robots Built . | . . . . Authchips . | . . . . Time . | . . . . Total Robot Build Rating . | . . . . Part Schematics Acquired . | . . . . Parts Built . | . . . . Authchips . | . . . . Time . | . . . . Total Part Build Rating . | . . . . Parts Repaired . | . . . . Time . | . . . . Parts Recycled . | . . . . Recycled Matter . | . . . . Retrieved Matter . | . . . . Retrieved Components . | . . . . Parts Scanalyzed . | . . . . Part Schematics Acquired . | . . . . Parts Damaged . | . . . . Bothacking | -11 -10 -10 -9 ------------ Run | Yrd Mat Min Mat Used RIF Installer . | . . . . Robots Hacked . | . . . . Non-combat . | . . . . Combat . | . . . . Robot Hacks Applied . | . . . . Relay Couplers Released . | . . . . Fabnet Peak Effective % . | . . . . Robots Rewired . | . . . . Allies Hacked . | . . . . Hacks Repelled . | . . . . Allies | -11 -10 -10 -9 -------- Run | Yrd Mat Min Mat Total Allies . | . . . . Largest Group . | . . . . Highest-Rated Group . | . . . . Highest-Rated Ally . | . . . . Total Orders . | . . . . Ally Attacks . | . . . . Total Damage . | . . . . Kills . | . . . . Allies Corrupted . | . . . . Allies Melted . | . . . . Intel | -11 -10 -10 -9 ------- Run | Yrd Mat Min Mat Robot Analysis Total . | . . . . Derelict Logs Recovered . | . . . . Drone Launches . | . . . . Drone Recoveries . | . . . . Exploration | -11 -10 -10 -9 ------------- Run | Yrd Mat Min Mat Turns Passed 2102 | 48 729 797 528 Spaces Moved 1115 | 45 506 371 193 Core 152 | 19 1 54 78 Treads . | . . . . Legs 869 | . 437 317 115 Wheels 94 | 26 68 . . Hover . | . . . . Flight . | . . . . Fastest Speed 50 | 50 90 120 100 Average Speed 126 | 73 116 124 169 Slowest Speed 250 | 90 250 150 250 Overloaded Moves . | . . . . Propulsion Burnouts . | . . . . Robots Hopped . | . . . . Cave-ins Triggered . | . . . . Exploration Rate (%) 41 | 3 84 57 22 Regions Visited 3 Branch Regions 1 Pre-discovered Areas . | . . . . Known Exits Taken 1 | . 1 . . Unknown Exits Taken 2 | 1 . 1 . Scrap Searched . | . . . . Spaces Dug . | . . . . Terrain Destroyed 185 | . 29 84 72 Melee . | . . . . Projectile . | . . . . AOE 185 | . 29 84 72 Terrain Rammed . | . . . . Walls Destroyed . | . . . . Machines Disabled . | . . . . Actions | -11 -10 -10 -9 --------- Run | Yrd Mat Min Mat Total 1623 | 58 577 681 307 Wait 325 | . . 289 36 Move 1112 | 44 505 370 193 Hop . | . . . . Pick Up 31 | 8 14 1 8 Fast Attach 2 | 2 . . . Attach 19 | 4 4 4 7 Detach . | . . . . Swap 17 | . 9 3 5 Drop 11 | . 8 1 2 Fire 106 | . 37 13 56 Melee . | . . . . Ram . | . . . . Kick . | . . . . Crush . | . . . . Escape Stasis . | . . . . Rewire . | . . . . Trap . | . . . . Miscellaneous . | . . . . Route ------- -11/Scrapyard -10/Materials (discovered 5 exits: *Mat x3 / *Min x2) -10/Mines -9/Materials (discovered 1 exit: [*Min]) History --------- Turn | Location | Event 9 | -11/Scrapyard | Discovered new exit (range 15) 49 | -11/Scrapyard | Entered Materials 252 | -10/Materials | Discovered new exit (range 16) 313 | -10/Materials | Build established: Mutant 346 | -10/Materials | Discovered new exit (range 6) 405 | -10/Materials | Identified exit to Mines 479 | -10/Materials | Discovered new exit (range 17) 582 | -10/Materials | Discovered new exit (range 10) 778 | -10/Materials | Entered Mines 785 | -10/Mines | Received a Rocket Launcher from a helpful Derelict 843 | -10/Mines | Discovered new exit (range 9) 1016 | -10/Mines | Core integrity fell below 50% 1034 | -10/Mines | Destroyed YI-UF0 1064 | -10/Mines | Lost 4 parts (1p2n1w) 1279 | -10/Mines | Core integrity fell below 20% 1575 | -10/Mines | Entered Materials 1575 | -9/Materials | Evolved 2 slots: Power x1, Utility x1 1722 | -9/Materials | Discovered new exit (range 16) 1805 | -9/Materials | Core integrity fell below 50% 1838 | -9/Materials | Lost 4 parts (2n2w) 2080 | -9/Materials | Core integrity fell below 20% 2103 | -9/Materials | Destroyed by Y-45 Defender with Beam Rifle Last Messages --------------- Switching to secondary target: S-10 Pest. S-10 Pest destroyed. Acquired 10 matter. Acquired Lgt. Assault Rifle. Acquired 18 matter. K-01 Serf collects debris. Acquired 19 matter. K-01 Serf collects debris. Acquired Shield Generator. Dropped ECM Suite. W-16 Scout sends out distress signal. K-01 Serf collects debris. U-05 Engineer builds a Door. Sml. Storage Unit destroyed. Y-45 Defender suffers critical hit (Burn). U-05 Engineer destroyed. K-01 Serf collects debris. Hvy. Assault Rifle destroyed. K-01 Serf collects debris. Beam Rifle destroyed. Map ----- +----------------------------------------------------+ | | | | | | | | | ?????????????????????????????????????????????????? | | ?????????????????????????????????????????????????? | | ?????????????????????????????????????????????????? | | ?????????????????????????????????????????????????? | | ?????????????????????????????????????????????????? | | ?????????????????????????????????????????????????? | | ?????????????????????????????????????????????????? | | ?????????????????????????????????????????????????? | | ?????????????????????????????????????????????????? | | ?????????????????????????????????????????????????? | | ?????????????????????????????????????????????????? | | ?????????????????????????????????????????????????? | | ?????????????????????????????????????????????????? | | ?????????????????????????????????????????????????? | | ?????????????????????????????????????????????????? | | ?????????????????????????????????????????????????? | | ?????????????????????????????????????????????????? | | ???????????????????# ????????????????????????????? | | ???????????????#???? ?????????????????#######??? | | ???????????????# = ###+################# ###+# | | ?????????????""# % | | ?????????? Y ! @ = w * < ! | | ???????????????# = = | | ???????????????## ##+######/########## ##### | | ????????????????#???????????# ### ##???? | | ????????????????????????????# !! #?# ###### | | ????????????????????????????# ! ### ## | | ????????????????????????????# """ ## ## | | ????????????????????????????# """ ### ## | | ????????????????????????????# """ #?# ## | | ????????????????????????????# ### ## | | ????????????????????????????#! ! ### ## | | ????????????????????????????############# ## | | ??????????????????????????????????????# # ## | | ??????????????????????????????????????# # ###+## | | ??????????????????????????????????????# # | | ??????????????????????????????????????# # | | ??????????????????????????????????????### | | ???????????????????????????????????????########### | | ?????????????????????????????????????????#####???? | | ?????????????????????????????????????????????????? | | ?????????????????????????????????????????????????? | | ?????????????????????????????????????????????????? | | ?????????????????????????????????????????????????? | | ?????????????????????????????????????????????????? | | ?????????????????????????????????????????????????? | +----------------------------------------------------+ Best States ------------- Heat Dissipation 28 Energy Generation 15 Energy Capacity 400 Matter Stores 294 Matter Capacity 300 Sight Range 16 Terrain Scan Density 10 ECM Strength 1 Power Shielding 33 Utility Shielding 33 Evasion (%) 55 Item Schematics ----------------- None Robot Schematics ------------------ None Fabricated ------------ Nothing Alien Tech Used ----------------- None Achievements -------------- None Challenges ------------ None Game ------ Seed AngularKineticLaser Manual? 0 Play Time 00:20:58 Cumulative 3.7 hours Start 2024.04.02 @ 20:47:28 End 2024.04.02 @ 21:07:48 Sessions 1 Manual Loads 0 Difficulty Rogue Special Mode None Game No. 9 Rogue 9 Adventurer 0 Explorer 0 Win Type - Total 0 Types 0/0/0/0/0/0/0/0/0 Lore% 9 Gallery% 7 Achievement% 9 Wizard Run 0 Options --------- Layout 1 ASCII 0 Keyboard 0 Movement Mouse Keybinds 0 Fullscreen 1 Font 32/SmallcapsGlow Map View 50x35 Zoom Use 0% Tactical HUD 0 Map Filters NONE Filters NONE Steam 1 RUN: 9390a936-3ae4-43bb-a884-ad88e28e6417